bitfinex/quotes_ETHUSD_20230116
["timestamp","ask_amount","ask_price","bid_price","bid_amount"]
[1673859789136,24.8088,1539.1,1538.7,25.19703246]
[1673859789459,24.8088,1539.1,1538.6,6.49926]
[1673859789460,10.00393893,1538.9,1538.6,6.49926]
[1673859789689,10.00393893,1538.9,1538.6,12.99843]
[1673859790018,10.00393893,1538.9,1538.6,6.49917]
[1673859790180,10.00393893,1538.9,1538.5,9.8560583]
[1673859790403,16.50207893,1538.9,1538.5,16.3558583]
[1673859790715,10.00393893,1538.9,1538.5,32.62830508]
[1673859790964,10.00393893,1538.9,1538.5,24.39960508]
[1673859791351,10.00393893,1538.9,1538.6,3.27278678]
[1673859791561,10.00393893,1538.9,1538.6,16.27123678]
[1673859792652,10.00393893,1538.9,1538.6,12.99845]
[1673859792827,10.00393893,1538.9,1538.6,6.49908]
[1673859793747,10.00393893,1538.9,1538.6,12.99849]
[1673859793993,10.00393893,1538.9,1538.6,6.49908]
[1673859795801,10.00393893,1538.7,1538.5,6.6109583]
[1673859796267,10.00393893,1538.7,1538.5,0.1113583]
[1673859797711,10.00393893,1538.7,1538.5,13.1109683]
[1673859798740,10.00393893,1538.7,1538.5,0.1113583]
[1673859799483,16.50298893,1538.7,1538.5,0.1113583]
[1673859799792,8.02121,1538.6,1538.5,0.1113583]
[1673859799999,28.84026678,1538.6,1538.5,0.1113583]
[1673859800387,29.48660596,1538.6,1538.5,0.1113583]
[1673859800599,31.98660596,1538.6,1538.5,0.1113583]
[1673859801650,21.56807,1538.6,1538.5,0.1113583]
[1673859802409,12.56866,1538.6,1538.5,0.1113583]
[1673859802615,3.51925,1538.6,1538.5,0.1113583]
[1673859803367,3.03145,1538.6,1538.5,0.1113583]
[1673859804164,3.03145,1538.6,1538.5,7.6791883]
[1673859804375,0.03145,1538.6,1538.5,20.6788483]
[1673859804587,0.03145,1538.6,1538.5,14.1790183]
[1673859805236,0.03145,1538.6,1538.5,6.6111883]
[1673859806080,1.06545,1538.6,1538.5,6.6111883]
[1673859806505,3.56545,1538.6,1538.5,6.6111883]
[1673859806702,1.06545,1538.6,1538.5,0.1113583]
[1673859807307,0.03145,1538.6,1538.5,0.1113583]
[1673859807519,0.03145,1538.6,1538.5,6.6111883]
[1673859808152,0.03145,1538.6,1538.5,6.60877102]
[1673859808379,0.03145,1538.6,1538.5,15.08306748]
[1673859808708,9.3989,1538.9,1538.5,24.85568426]
[1673859808921,9.3989,1538.9,1538.5,26.36968426]
[1673859809542,10.00393893,1539.0,1538.5,26.36968426]
[1673859809726,10.00393893,1539.0,1538.7,12.9978]
[1673859809937,10.00393893,1539.0,1538.7,6.4989]
[1673859810314,12.99163893,1539.0,1538.7,6.4989]
[1673859812243,2.5,1538.9,1537.9,6.97417458]
[1673859812466,2.5,1538.9,1537.9,0.13717458]
[1673859812694,2.5,1538.9,1537.9,0.34638473]
[1673859813624,11.99823,1538.9,1537.9,0.34638473]
[1673859813842,18.056631,1538.9,1537.9,0.34638473]
[1673859814077,24.554861,1538.9,1537.9,0.34638473]
[1673859814285,31.053091,1538.9,1537.9,23.64318473]
[1673859814478,10.00393893,1538.7,1537.9,20.64318473]
[1673859814693,8.99951,1538.6,1537.9,20.64318473]
[1673859815040,8.99951,1538.6,1537.9,27.14536473]
[1673859815202,15.49902,1538.6,1537.9,33.64754473]
[1673859815564,15.98682,1538.6,1537.9,27.14536473]
[1673859815874,22.48633,1538.6,1537.9,27.14536473]
[1673859817706,10.00393893,1538.5,1537.9,20.64318473]
[1673859817916,13.48875,1538.4,1537.9,20.64318473]
[1673859818177,13.48875,1538.4,1537.9,0.34638473]
[1673859818387,2.5,1538.3,1537.9,0.34638473]
[1673859818967,13.48875,1538.4,1537.9,0.34638473]
[1673859819146,15.98875,1538.4,1537.9,0.34638473]
[1673859819293,2.5,1538.3,1537.9,0.34638473]
[1673859819499,13.48875,1538.4,1537.9,0.34638473]
[1673859819822,13.48875,1538.4,1537.9,1.86238473]
[1673859820714,15.98875,1538.4,1537.9,1.86238473]
[1673859821343,2.5,1538.3,1537.9,0.13717458]
[1673859821532,13.00236,1538.2,1537.9,0.13717458]
[1673859821715,6.50118,1538.2,1537.9,0.13717458]
[1673859822554,6.98908,1538.2,1537.9,0.13717458]
[1673859823013,6.50118,1538.2,1537.9,0.13717458]
[1673859824144,13.00236,1538.2,1537.9,0.13717458]
[1673859826279,15.50236,1538.2,1537.9,0.13717458]
[1673859826434,13.00236,1538.2,1537.9,0.13717458]
[1673859826647,19.50354,1538.2,1537.9,0.13717458]
[1673859826893,22.75307789,1538.2,1537.9,0.13717458]
[1673859827098,25.25307789,1538.2,1537.9,0.13717458]
[1673859827544,2.5,1538.1,1537.9,0.13717458]
[1673859827713,9.00165,1538.1,1537.9,0.13717458]
[1673859828068,15.5033,1538.1,1537.9,0.13717458]
[1673859828851,22.00495,1538.1,1537.9,0.13717458]
[1673859829113,25.105555,1538.1,1537.9,0.13717458]
[1673859829543,21.02785,1538.0,1537.9,0.13717458]
[1673859830115,23.52785,1538.0,1537.9,0.13717458]
[1673859831904,21.02785,1538.0,1537.9,0.13717458]
[1673859832812,14.5259,1538.0,1537.9,0.13717458]
[1673859833113,0.488,1538.0,1537.9,0.13717458]
[1673859833691,1.522,1538.0,1537.9,0.13717458]
[1673859833938,0.488,1538.0,1537.9,0.13717458]
[1673859834174,1.522,1538.0,1537.9,0.13717458]
[1673859835241,4.022,1538.0,1537.9,0.13717458]
[1673859835526,29.63256893,1538.0,1537.9,0.13717458]
[1673859835739,30.13256893,1538.0,1537.9,0.13717458]
[1673859835896,18.02788893,1538.0,1537.9,0.13717458]
[1673859836119,23.52788893,1538.0,1537.9,0.13717458]
[1673859836430,20.52788893,1538.0,1537.9,0.13717458]
[1673859836640,24.52983893,1538.0,1537.9,0.13717458]
[1673859837606,23.49583893,1538.0,1537.9,0.13717458]
[1673859837821,0.488,1538.0,1537.9,0.13717458]
[1673859838159,13.4919,1538.0,1537.9,0.13717458]
[1673859838539,15.741255,1538.0,1537.9,0.13717458]
[1673859838755,22.243205,1538.0,1537.9,0.13717458]
[1673859838967,24.743205,1538.0,1537.9,0.13717458]
[1673859839727,24.743205,1538.0,1537.9,0.13367596]
[1673859839950,0.488,1538.0,1537.9,0.13367596]
[1673859840565,13.3439,1538.2,1537.9,10.97683274]
[1673859840730,10.3439,1538.2,1537.9,10.97683274]
[1673859841195,10.8318,1538.2,1537.9,10.97683274]
[1673859841408,23.1802,1538.4,1537.9,20.70878596]
[1673859841656,34.0088,1538.4,1537.9,20.70878596]
[1673859841995,34.4967,1538.4,1537.9,20.70878596]
[1673859842417,47.49736,1538.4,1537.9,1.20167596]
[1673859842651,47.49736,1538.4,1537.9,2.72067596]
[1673859842864,47.49736,1538.4,1537.9,12.49575274]
[1673859843037,2.5,1538.3,1537.9,12.49575274]
[1673859843252,2.5,1538.3,1537.9,18.99812274]
[1673859843723,2.5,1538.3,1537.9,18.97774001]
[1673859843940,2.5,1538.3,1537.9,17.45874001]
[1673859844259,36.9967,1538.4,1537.9,17.45874001]
[1673859844420,34.4967,1538.4,1537.9,14.18595323]
[1673859844636,40.99696,1538.4,1537.9,7.68366323]
[1673859844828,2.5,1538.3,1537.9,7.68366323]
[1673859845770,9.00093,1538.3,1537.9,0.11329323]
[1673859846246,6.98901,1538.2,1537.9,0.11329323]
[1673859846403,13.49042,1538.2,1537.9,0.11329323]
[1673859846611,22.94206661,1538.2,1537.9,0.11329323]
[1673859846856,10.00393893,1538.1,1537.9,0.11329323]
[1673859847082,2.988,1538.0,1537.9,0.11329323]
[1673859847454,9.48995,1538.0,1537.9,0.11329323]
[1673859849141,5.988,1538.0,1537.9,0.11329323]
[1673859850509,12.48995,1538.0,1537.9,0.11329323]
[1673859851129,25.51420629,1538.0,1537.9,0.11329323]
[1673859851394,33.53515629,1538.0,1537.9,0.00029323]
[1673859851763,38.88987601,1538.0,1537.9,0.00029323]
[1673859852017,33.53515629,1538.0,1537.9,0.00029323]
[1673859852526,25.51420629,1538.0,1537.9,0.00029323]
[1673859852736,6.98995,1538.0,1537.9,0.00029323]
[1673859853347,13.4919,1538.0,1537.9,0.00029323]
[1673859853559,19.99385,1538.0,1537.9,0.00029323]
[1673859853996,22.49385,1538.0,1537.9,0.00029323]
[1673859854230,29.01615629,1538.0,1537.9,0.00029323]
[1673859854433,32.01615629,1538.0,1537.9,0.00029323]
[1673859855284,25.49385,1538.0,1537.9,0.00029323]
[1673859857437,25.00585,1538.0,1537.9,0.00029323]
[1673859858490,25.49385,1538.0,1537.9,0.00029323]
[1673859859281,30.28263678,1538.0,1537.8,0.00109724]
[1673859859438,27.52837368,1537.9,1537.8,0.00109724]
[1673859859858,40.03231261,1537.9,1537.8,0.00109724]
[1673859863899,35.49904893,1537.9,1537.8,0.00109724]
[1673859864503,13.00474,1537.9,1537.8,0.00109724]
[1673859864862,6.50237,1537.9,1537.8,0.00109724]
[1673859865077,6.50237,1537.9,1537.8,1.06909724]
[1673859865231,6.50237,1537.9,1537.8,0.00109724]
[1673859865699,6.50237,1537.9,1537.8,1.06909724]
[1673859866019,45.6239,1538.1,1537.8,1.19080141]
[1673859866235,39.12219,1538.1,1537.8,1.19080141]
[1673859866906,49.12612893,1538.1,1537.8,1.19080141]
[1673859867124,55.62783893,1538.1,1537.8,1.19080141]
[1673859867818,62.12954893,1538.1,1537.8,0.12280141]
[1673859867956,2.5,1538.0,1537.8,0.00109724]
[1673859868381,9.00195,1538.0,1537.8,0.00109724]
[1673859869175,14.00195,1538.0,1537.8,0.00109724]
[1673859869538,5.0,1538.0,1537.8,0.00109724]
[1673859869749,5.0,1538.0,1537.8,6.50388724]
[1673859869957,5.0,1538.0,1537.9,0.65038872]
[1673859870851,5.0,1538.0,1537.9,7.15275872]
[1673859871022,5.0,1538.0,1537.9,21.90649872]
[1673859871232,5.0,1538.0,1537.9,25.1792855]
[1673859872318,5.0,1538.0,1537.9,12.1745455]
[1673859872940,5.0,1538.0,1537.9,18.6769155]
[1673859874477,5.0,1538.0,1537.9,25.1792855]
[1673859874725,5.17774994,1538.0,1537.9,25.1792855]
[1673859875757,5.17774994,1538.0,1537.9,18.6769155]
[1673859876527,5.17774994,1538.0,1537.9,12.1745455]
[1673859876896,5.17774994,1538.0,1537.9,2.39938872]
[1673859877102,5.17774994,1538.0,1537.9,0.88038872]
[1673859877581,5.17774994,1538.0,1537.9,7.38275872]
[1673859878364,5.17774994,1538.0,1537.9,15.40412872]
[1673859879419,5.17774994,1538.0,1537.9,18.6769155]
[1673859880268,5.17774994,1538.0,1537.9,13.88512872]
[1673859881740,5.17774994,1538.0,1537.8,0.00109724]
[1673859882585,5.66574994,1538.0,1537.8,6.50385724]
[1673859882804,5.17774994,1538.0,1537.8,6.50385724]
[1673859883206,5.17774994,1538.0,1537.8,0.00109724]
[1673859883780,2.5,1537.9,1537.8,0.00109724]
[1673859884363,5.17774994,1538.0,1537.8,0.00109724]
[1673859884569,7.67774994,1538.0,1537.8,0.00109724]
[1673859884825,5.17774994,1538.0,1537.8,0.00109724]
[1673859885017,5.17774994,1538.0,1537.8,14.32214041]
[1673859887338,5.17774994,1538.0,1537.8,7.81935041]
[1673859888595,5.17774994,1538.0,1537.8,24.09771719]
[1673859888791,5.17774994,1538.0,1537.8,25.61671719]
[1673859889004,5.17774994,1538.0,1537.9,9.06404172]
[1673859889779,5.17774994,1538.0,1537.9,8.06404172]
[1673859890083,5.17774994,1538.0,1537.9,25.8605685]
[1673859890296,5.17774994,1538.0,1537.9,26.0905685]
[1673859890885,5.17774994,1538.0,1537.9,31.5905685]
[1673859891100,5.17774994,1538.0,1537.9,33.1594085]
[1673859891729,5.0,1538.0,1537.9,33.1594085]
[1673859892185,5.0,1538.0,1537.9,30.6594085]
[1673859892577,5.0,1538.0,1537.9,30.7133685]
[1673859892787,5.0,1538.0,1537.9,37.5503685]
[1673859893867,5.0,1538.0,1537.9,39.84614796]
[1673859895708,5.0,1538.0,1537.9,37.34614796]
[1673859895920,5.0,1538.0,1537.9,37.46054796]
[1673859896144,5.0,1538.0,1537.9,37.46762512]
[1673859896394,5.0,1538.0,1537.9,42.90014952]
[1673859896608,5.0,1538.0,1537.9,39.79029606]
[1673859896972,5.0,1538.0,1537.9,39.25080595]
[1673859897299,5.0,1538.0,1537.9,40.53285869]
[1673859897517,5.0,1538.0,1537.9,39.03285869]
[1673859897759,5.0,1538.0,1537.9,35.97801917]
[1673859899406,5.0,1538.0,1537.9,35.75981917]
[1673859899752,3.42579942,1538.0,1537.9,39.03260595]
[1673859901282,0.14645028,1538.0,1537.9,39.03260595]
[1673859901506,0.5500861,1538.8,1538.1,6.837]
[1673859901507,0.0622861,1538.8,1538.1,6.837]
[1673859901719,0.0622861,1538.8,1538.7,32.64475678]
[1673859901962,0.0622861,1538.8,1538.7,35.64475678]
[1673859902225,0.0622861,1538.8,1538.7,9.54078678]
[1673859903196,0.0622861,1538.8,1538.7,2.86028678]
[1673859903413,0.0622861,1538.8,1538.6,1.519]
[1673859903414,2.16071322,1538.7,1538.6,1.519]
[1673859903738,2.16071322,1538.7,1538.6,7.79178678]
[1673859904120,2.16071322,1538.7,1538.6,4.519]
[1673859904381,2.16071322,1538.7,1538.6,1.519]
[1673859904802,1.519,1538.6,1538.5,0.181]
[1673859905013,0.181,1538.5,1538.2,13.00218]
[1673859905173,2.0068,1538.6,1538.4,1.507]
[1673859905174,1.519,1538.6,1538.4,1.507]
[1673859905380,0.4878,1538.7,1538.5,4.79178678]
[1673859905651,0.0622861,1538.8,1538.6,4.79178678]
[1673859905867,0.0622861,1538.8,1538.7,4.79178678]
[1673859906020,0.0622861,1538.8,1538.7,11.29077678]
[1673859906395,0.0622861,1538.8,1538.7,25.80775678]
[1673859906582,0.0622861,1538.8,1538.7,29.03775678]
[1673859908608,0.0622861,1538.8,1538.7,27.51875678]
[1673859912267,0.0622861,1538.8,1538.7,34.35575678]
[1673859912479,0.0622861,1538.8,1538.7,27.51875678]
[1673859913325,100.0622861,1538.8,1538.7,27.51875678]
[1673859915613,100.0622861,1538.8,1538.7,25.99975678]
[1673859916152,100.0622861,1538.8,1538.7,6.00278678]
[1673859916345,100.0622861,1538.8,1538.7,2.82762676]
[1673859916556,2.0,1538.7,1538.6,6.49918]
[1673859917187,2.0,1538.7,1538.6,19.498]
[1673859917832,100.0622861,1538.8,1538.6,19.498]
[1673859918092,100.0622861,1538.8,1538.7,20.79497]
[1673859918279,100.0622861,1538.8,1538.7,23.79497]
[1673859919759,0.0622861,1538.8,1538.7,23.79497]
[1673859923508,0.0622861,1538.8,1538.7,30.63197]
[1673859925439,0.0622861,1538.8,1538.7,32.15097]
[1673859925977,0.0622861,1538.8,1538.7,33.9546843]
[1673859929346,0.06454999,1539.0,1538.7,33.9546843]
[1673859929516,0.06454999,1539.0,1538.9,8.356]
[1673859929713,0.06454999,1539.0,1538.9,11.356]
[1673859929922,0.06454999,1539.0,1538.9,37.34856]
[1673859930131,0.06454999,1539.0,1538.9,37.57856]
[1673859930397,0.06454999,1539.0,1538.9,37.85564912]
[1673859932616,0.06536522,1539.1,1538.9,37.85564912]
[1673859932837,0.06536522,1539.1,1539.0,31.06716]
[1673859933057,5.22e-06,1539.1,1539.0,32.58616]
[1673859933269,0.06536522,1539.2,1539.0,32.86324912]
[1673859933440,0.06536522,1539.2,1539.1,8.346]
[1673859933652,0.06536522,1539.2,1539.1,31.0679]
[1673859934635,0.06536522,1539.2,1539.1,24.2309]
[1673859934827,0.06536522,1539.2,1539.1,24.0009]
[1673859935370,0.06536522,1539.2,1539.1,30.8379]
[1673859936060,0.06536522,1539.2,1539.1,31.0679]
[1673859936265,0.06536522,1539.2,1539.1,24.2309]
[1673859936482,0.06536522,1539.2,1539.1,22.4919]
[1673859936921,1.21436522,1539.2,1539.1,15.9946]
[1673859937145,0.06536522,1539.2,1539.1,15.9946]
[1673859937738,0.06536522,1539.2,1539.1,29.3289]
[1673859938055,0.06536522,1539.2,1539.1,32.64398912]
[1673859938314,0.06536522,1539.2,1539.1,32.87398912]
[1673859938486,0.06536522,1539.2,1539.1,17.37128912]
[1673859938695,0.06536522,1539.2,1539.1,22.34958912]
[1673859945297,0.06536522,1539.2,1539.1,14.5136]
[1673859945506,0.06536522,1539.2,1539.1,21.0109]
[1673859947228,0.06536522,1539.2,1539.1,24.0109]
[1673859947451,0.06536522,1539.2,1539.1,24.2409]
[1673859951324,0.06536522,1539.2,1539.1,22.7219]
[1673859952149,0.06536522,1539.2,1539.1,29.5589]
[1673859955228,0.06536522,1539.2,1539.1,31.0779]
[1673859955605,0.06536522,1539.2,1539.1,29.5589]
[1673859957330,0.06536522,1539.2,1539.1,11.0562]
[1673859957544,0.06536522,1539.2,1539.1,24.2808]
[1673859959195,0.06536522,1539.2,1539.1,27.2808]
[1673859961720,1.21436522,1539.2,1539.1,22.7219]
[1673859961953,11.33974067,1539.2,1539.1,12.9946]
[1673859962175,11.21830415,1539.2,1539.1,12.9946]
[1673859963124,11.21830415,1539.2,1539.1,15.9946]
[1673859963504,0.06536522,1539.2,1539.1,22.4919]
[1673859963767,0.06536522,1539.2,1538.4,0.55399123]
[1673859963768,17.491,1539.1,1538.4,0.55399123]
[1673859963921,12.99638,1538.9,1538.1,0.1251004]
[1673859964135,10.00393893,1538.5,1538.1,0.1251004]
[1673859964449,1.6369,1538.4,1538.3,4e-07]
[1673859964683,11.15316,1538.4,1538.1,0.1251004]
[1673859964887,11.52293893,1538.2,1538.1,0.0001004]
[1673859965135,12.01083893,1538.2,1538.1,0.0001004]
[1673859965284,12.9309494,1538.2,1538.1,0.0001004]
[1673859965828,10.49183893,1538.2,1538.1,0.0001004]
[1673859967076,12.01083893,1538.2,1538.1,0.0001004]
[1673859970765,4.019,1538.1,1537.9,7.785e-05]
[1673859970985,4.019,1538.1,1537.8,0.00109724]
[1673859970986,21.01325893,1538.0,1537.8,0.00109724]
[1673859971199,1.519,1537.9,1537.7,0.00094446]
[1673859971394,11.64103893,1537.8,1537.7,0.00094446]
[1673859972023,10.49203893,1537.8,1537.7,0.00094446]
[1673859972238,26.08892589,1537.9,1537.7,1.06894446]
[1673859972239,22.4686,1537.9,1537.7,1.06894446]
[1673859972959,10.00393893,1537.9,1537.7,4.06894446]
[1673859973168,10.00393893,1537.9,1537.8,0.23]
[1673859973814,10.00393893,1537.9,1537.8,1.298]
[1673859974023,0.488,1538.0,1537.8,8.88100545]
[1673859974329,10.00393893,1538.1,1537.8,9.53279775]
[1673859974569,10.00393893,1538.1,1537.9,9.50223]
[1673859974780,10.00393893,1538.1,1538.0,7.79995]
[1673859974975,10.00393893,1538.1,1538.0,10.79995]
[1673859975187,10.00393893,1538.1,1538.0,12.830168]
[1673859976317,10.00393893,1538.1,1538.0,19.332118]
[1673859976639,10.00393893,1538.1,1538.0,11.762168]
[1673859976842,10.00393893,1538.1,1538.0,9.73195]
[1673859978212,10.00393893,1538.1,1538.0,1.5]
[1673859978588,10.00393893,1538.1,1537.8,6.50277]
[1673859978589,1.649,1538.0,1537.8,6.50277]
[1673859979101,10.00393893,1537.9,1537.8,6.50277]
[1673859979700,6.649,1537.8,1537.7,0.00094446]
[1673859982740,13.15179,1537.8,1537.7,0.00094446]
[1673859983710,23.91135757,1537.8,1537.7,0.00094446]
[1673859983936,24.39945757,1537.8,1537.7,0.00094446]
[1673859984650,17.89666757,1537.8,1537.7,0.00094446]
[1673859985060,15.14489,1537.8,1537.7,0.00094446]
[1673859988520,5.5,1537.8,1537.7,0.00094446]
[1673859989030,5.9881,1537.8,1537.7,0.00094446]
[1673859989247,5.5,1537.8,1537.7,1.06894446]
[1673859989775,5.5,1537.8,1537.7,6.73415446]
[1673859989983,5.5,1537.8,1537.7,8.70827491]
[1673859990963,10.00393893,1537.9,1537.7,24.71469491]
[1673859991151,10.00393893,1537.9,1537.8,4.298]
[1673859991347,10.00393893,1537.9,1537.8,23.80637]
[1673859991556,10.00393893,1537.9,1537.8,26.38451349]
[1673859994136,23.7108,1538.0,1537.8,39.93748528]
[1673859994656,10.00393893,1538.3,1538.1,6.837]
[1673859994812,10.00393893,1538.3,1538.2,29.5703]
[1673859995022,10.00393893,1538.3,1538.2,33.04868391]
[1673859998834,10.00393893,1538.3,1538.2,26.21168391]
[1673859999223,10.00393893,1538.3,1538.2,19.71058391]
[1673859999434,10.00393893,1538.3,1538.2,12.97948391]
[1673859999684,10.00393893,1538.3,1538.2,9.5011]
[1673860000910,10.00393893,1538.3,1538.2,9.7311]
[1673860001540,10.00393893,1538.3,1538.2,0.23]
[1673860001755,0.23,1538.2,1538.0,6.50162]
[1673860002583,10.00393893,1538.1,1538.0,6.50162]
[1673860002793,10.00393893,1538.1,1537.8,6.50259]
[1673860003053,10.00393893,1538.1,1537.9,9.50214]
[1673860003428,10.00393893,1538.1,1537.9,16.00451]
[1673860003640,10.00393893,1538.1,1537.9,22.50688]
[1673860003900,10.23393893,1538.2,1537.9,22.50688]
[1673860004425,10.23393893,1538.2,1537.9,29.34388]
[1673860004603,0.23,1538.2,1538.1,13.00304]
[1673860004807,0.23,1538.2,1538.1,16.23304]
[1673860005447,12.50393893,1538.3,1538.1,22.73456]
[1673860005653,12.50393893,1538.3,1538.2,14.3002]
[1673860005901,12.50393893,1538.3,1538.2,20.8013]
[1673860006061,12.50393893,1538.3,1538.2,25.01402606]
[1673860006848,10.00393893,1538.3,1538.2,25.01402606]
[1673860007364,31.7004,1538.5,1538.2,31.85102606]
[1673860007526,21.7162,1538.5,1538.4,13.00052]
[1673860007738,10.01041447,1538.6,1538.4,18.20464045]
[1673860007990,10.01041447,1538.6,1538.5,7.79783]
[1673860008208,10.01041447,1538.6,1538.5,10.79783]
[1673860008846,0.00647554,1538.6,1538.5,23.79749]
[1673860009769,0.00647554,1538.6,1538.5,10.79783]
[1673860010385,0.00647554,1538.6,1538.5,13.37504104]
[1673860011386,1.15547554,1538.6,1538.5,5.80721104]
[1673860011541,3.15727554,1538.6,1538.3,9.50062]
[1673860011886,3.15727554,1538.6,1538.2,6.50098]
[1673860011887,10.00393893,1538.4,1538.2,6.50098]
[1673860012260,10.00393893,1538.4,1538.2,7.801193]
[1673860013200,10.00393893,1538.4,1538.3,3.0]
[1673860015739,10.00393893,1538.4,1538.3,16.00136]
[1673860015951,10.00393893,1538.4,1538.3,16.23136]
[1673860016383,10.00393893,1538.5,1538.3,22.73204]
[1673860016613,10.00393893,1538.5,1538.4,3.571204]
[1673860016839,10.00393893,1538.5,1538.4,26.071984]
[1673860019815,0.00647554,1538.6,1538.4,26.071984]
[1673860020078,0.00647554,1538.6,1538.5,22.49949]
[1673860020298,0.00647554,1538.6,1538.5,22.72949]
[1673860020613,0.00647554,1538.6,1538.5,25.2527594]
[1673860022477,0.00647554,1538.6,1538.5,32.0897594]
[1673860023681,0.00647554,1538.6,1538.5,38.82739305]
[1673860024046,0.00647554,1538.6,1538.5,32.0897594]
[1673860025134,0.004174,1538.6,1538.5,32.0897594]
[1673860025741,0.004174,1538.6,1538.5,33.6027594]
[1673860025948,0.004174,1538.6,1538.5,38.82253445]
[1673860026416,0.004174,1538.6,1538.5,33.6027594]
[1673860029246,0.004174,1538.6,1538.5,22.0227594]
[1673860029423,0.004174,1538.6,1538.5,19.49949]
[1673860030725,0.004174,1538.6,1538.5,22.49949]
[1673860030880,0.004174,1538.6,1538.5,22.72949]
[1673860032292,0.004174,1538.6,1538.5,29.56649]
[1673860033088,0.004174,1538.6,1538.5,31.07349]
[1673860033332,0.004174,1538.6,1538.5,40.42793824]
[1673860034201,0.004174,1538.6,1538.5,35.2089574]
[1673860035067,0.004174,1538.6,1538.5,40.43228633]
[1673860035216,0.004174,1538.6,1538.5,35.2089574]
[1673860039020,4e-06,1538.6,1538.5,40.43416034]
[1673860039371,0.0715109,1538.7,1538.5,40.43416034]
[1673860039580,0.0715109,1538.7,1538.6,33.3753456]
[1673860042716,0.0715109,1538.7,1538.6,38.60208094]
[1673860042907,0.0715109,1538.7,1538.6,38.60198873]
[1673860043122,0.0715109,1538.7,1538.6,33.3753456]
[1673860044685,9e-07,1538.7,1538.6,38.60176618]
[1673860045014,9e-07,1538.7,1538.6,38.60201922]
[1673860045287,9e-07,1538.7,1538.6,33.3753456]
[1673860046299,9e-07,1538.7,1538.6,38.60165558]
[1673860046534,9e-07,1538.7,1538.6,38.84343072]
[1673860046729,0.07406319,1539.0,1538.9,32.82956]
[1673860046885,0.07406319,1539.0,1538.9,36.05956]
[1673860047097,0.07406319,1539.0,1538.9,37.57856]
[1673860051831,0.07406319,1539.0,1538.9,32.82956]
[1673860052273,1.22306319,1539.0,1538.9,19.49442]
[1673860052468,1.22306319,1539.0,1538.9,17.15242]
[1673860053201,1.22306319,1539.0,1538.9,20.15242]
[1673860053832,1.22306319,1539.0,1538.9,20.38242]
[1673860054093,0.07406319,1539.0,1538.9,20.38242]
[1673860054298,0.07406319,1539.0,1538.9,22.420662]
[1673860055146,0.07110569,1539.0,1538.9,22.420662]
[1673860055681,0.07110569,1539.0,1538.9,29.257662]
[1673860056801,0.07110569,1539.0,1538.9,30.776662]
[1673860057018,0.07110569,1539.0,1538.9,31.01843714]
[1673860057854,0.07110569,1539.0,1538.9,30.776662]
[1673860058080,0.07110569,1539.0,1538.9,36.67832685]
[1673860058404,0.07110569,1539.0,1538.9,31.72139926]
[1673860059234,0.07110569,1539.0,1538.9,31.01843714]
[1673860062179,0.07110569,1539.0,1538.9,30.776662]
[1673860065179,0.07110569,1539.0,1538.9,29.257662]
[1673860075203,0.06874121,1539.0,1538.9,29.257662]
[1673860077808,1.21774121,1539.0,1538.9,20.15242]
[1673860078018,1.21774121,1539.0,1538.9,17.15242]
[1673860079580,0.06874121,1539.0,1538.9,17.15242]
[1673860079789,0.06874121,1539.0,1538.9,20.15242]
[1673860080228,0.06874121,1539.0,1538.9,20.38242]
[1673860081703,0.06874121,1539.0,1538.9,23.070495]
[1673860082793,0.06874121,1539.0,1538.9,29.907495]
[1673860083631,0.06874121,1539.0,1538.9,29.807495]
[1673860084255,0.06874121,1539.0,1538.9,22.970495]
[1673860084460,0.06874121,1539.0,1538.9,29.807495]
[1673860088340,0.06874121,1539.0,1538.9,20.05242]
[1673860089946,0.06874121,1539.0,1538.9,20.28242]
[1673860091062,0.06874121,1539.0,1538.9,27.11942]
[1673860091967,0.06874121,1539.0,1538.9,20.28242]
[1673860092329,0.06874121,1539.0,1538.9,27.11942]
[1673860092542,0.06874121,1539.0,1538.9,30.481195]
[1673860093062,0.06874121,1539.0,1538.9,3.23]
[1673860093336,0.06874121,1539.0,1538.9,13.88528]
[1673860093485,0.06874121,1539.0,1538.9,20.38342]
[1673860094951,0.06874121,1539.0,1538.9,27.22042]
[1673860095428,0.06874121,1539.0,1538.9,20.38342]
[1673860097161,0.06874121,1539.0,1538.9,20.38136336]
[1673860097370,1.21774121,1539.0,1538.9,19.72442]
[1673860097690,0.5,1538.9,1538.8,6.49833]
[1673860097902,10.50393893,1538.9,1538.8,6.49833]
[1673860098471,10.00393893,1538.9,1538.8,19.49547]
[1673860098893,9.95393893,1538.9,1538.8,19.49547]
[1673860099107,9.95393893,1538.9,1538.8,21.445017]
[1673860099419,9.95393893,1538.9,1538.8,24.445017]
[1673860099638,9.95393893,1538.9,1538.8,24.675017]
[1673860100666,9.95393893,1538.9,1538.8,22.72547]
[1673860103506,9.95393893,1538.9,1538.8,3.0]
[1673860104515,11.46993893,1538.9,1538.8,3.0]
[1673860104729,11.46993893,1538.9,1538.6,6.49912]
[1673860104989,1.516,1538.9,1538.6,6.49912]
[1673860105203,9.95393893,1538.7,1538.5,12.99964]
[1673860105395,9.95393893,1538.7,1538.4,36.81022]
[1673860105663,9.95393893,1538.7,1538.4,6.50022]
[1673860105948,9.95393893,1538.5,1538.4,6.50022]
[1673860106328,9.95393893,1538.5,1538.3,13.00068]
[1673860106530,10.94933282,1538.5,1538.3,13.00068]
[1673860106728,9.95393893,1538.5,1538.3,13.00068]
[1673860106943,9.95393893,1538.5,1538.3,19.50136]
[1673860107194,9.95393893,1538.5,1538.4,3.0]
[1673860107517,9.95393893,1538.5,1538.4,22.50078]
[1673860108042,9.95393893,1538.5,1538.4,22.73078]
[1673860108723,21.751,1538.7,1538.4,22.73078]
[1673860108938,31.70493893,1538.7,1538.5,0.23]
[1673860109186,31.70493893,1538.7,1538.6,19.49823]
[1673860109428,9.95393893,1538.7,1538.6,22.72823]
[1673860111412,9.95393893,1538.7,1538.6,3.0]
[1673860111594,14.68080282,1538.7,1538.5,3.0]
[1673860111803,1.508,1538.6,1538.4,3.0]
[1673860112506,11.46693893,1538.5,1538.2,13.0016]
[1673860112725,9.95393893,1538.3,1538.1,43.4325491]
[1673860112926,9.95393893,1538.3,1538.1,13.1225491]
[1673860114031,9.95393893,1538.3,1538.1,19.6240691]
[1673860114188,9.95393893,1538.3,1538.2,21.46570691]